bitfinex-derivatives/quotes_BTCF0:USTF0_20240910
["timestamp","ask_amount","ask_price","bid_price","bid_amount"]
[1725957763272,0.0875,57140.0,57138.0,0.1176]
[1725957763575,0.2475,57140.0,57138.0,0.1176]
[1725957763763,0.0875,57140.0,57139.0,0.087501]
[1725957764165,0.16,57144.0,57138.0,0.1176]
[1725957764363,0.16,57144.0,57138.0,0.205102]
[1725957764364,0.0875,57140.0,57138.0,0.205102]
[1725957764573,0.0875,57140.0,57139.0,0.087501]
[1725957764880,0.0885,57140.0,57139.0,0.087501]
[1725957765074,0.087505,57137.0,57133.0,0.06963917]
[1725957765275,0.087498,57142.0,57138.0,0.087502]
[1725957765576,0.087499,57141.0,57138.0,0.087502]
[1725957765778,0.087501,57140.0,57138.0,0.087502]
[1725957766078,0.087501,57139.0,57138.0,0.087502]
[1725957766478,0.001,57140.0,57139.0,0.087501]
[1725957766673,0.087499,57140.0,57139.0,0.087901]
[1725957767071,0.088499,57140.0,57139.0,0.087901]
[1725957767480,0.001,57140.0,57139.0,0.087901]
[1725957768481,0.002,57140.0,57139.0,0.087901]
[1725957769274,0.002,57140.0,57139.0,0.860442]
[1725957769478,0.0041,57149.0,57148.0,0.087487]
[1725957769682,0.0647,57158.0,57148.0,0.087487]
[1725957769683,0.087477,57155.0,57152.0,0.087481]
[1725957770378,0.11088825,57155.0,57152.0,0.087481]
[1725957770782,0.11088825,57155.0,57153.0,0.087479]
[1725957771183,0.16,57154.0,57148.0,0.0004]
[1725957771391,0.08748,57153.0,57151.0,0.087482]
[1725957772388,0.16,57154.0,57148.0,0.0004]
[1725957772689,0.087475,57156.0,57153.0,0.087879]
[1725957772872,0.087475,57156.0,57155.0,0.0004]
[1725957773071,0.087475,57156.0,57153.0,0.087879]
[1725957773487,0.001,57154.0,57153.0,0.087879]
[1725957774082,0.11053135,57160.0,57157.0,0.087473]
[1725957774277,0.11053135,57160.0,57159.0,0.0004]
[1725957775680,0.066,57169.0,57159.0,0.0004]
[1725957775890,0.10421633,57172.0,57170.0,0.087453]
[1725957775891,0.0041,57172.0,57170.0,0.087453]
[1725957776078,0.208845,57176.0,57171.0,0.0004]
[1725957776278,0.16,57173.0,57171.0,0.0004]
[1725957776483,0.087451,57172.0,57171.0,0.0004]
[1725957777184,0.20326133,57172.0,57171.0,0.0004]
[1725957777380,0.087455,57169.0,57168.0,0.0004]
[1725957777580,0.27581437,57169.0,57168.0,0.0004]
[1725957777788,1.40057437,57169.0,57168.0,0.0004]
[1725957778394,0.18835937,57169.0,57163.0,0.087464]
[1725957778687,0.087463,57164.0,57154.0,0.058]
[1725957778891,0.16,57164.0,57158.0,0.087472]
[1725957779085,0.16,57160.0,57154.0,0.145477]
[1725957779290,0.087473,57158.0,57154.0,0.058]
[1725957779792,0.087473,57158.0,57157.0,0.087473]
[1725957780887,0.089473,57158.0,57157.0,0.087473]
[1725957782192,0.087473,57157.0,57155.0,0.08704896]
[1725957782391,0.087473,57157.0,57151.0,0.08704896]
[1725957782392,0.087478,57154.0,57151.0,0.08704896]
[1725957782592,0.16,57152.0,57148.0,0.08704896]
[1725957782795,0.16,57152.0,57147.0,0.0041]
[1725957782796,0.247487,57149.0,57147.0,0.06977853]
[1725957783092,0.247487,57149.0,57143.0,0.09114896]
[1725957783093,0.087487,57148.0,57146.0,0.06977853]
[1725957783489,0.087487,57148.0,57143.0,0.08704896]
[1725957783686,0.087487,57148.0,57144.0,0.08704896]
[1725957784499,0.02395214,57149.0,57144.0,0.08704896]
[1725957784693,0.02395214,57149.0,57148.0,0.070179]
[1725957784991,0.11143814,57149.0,57148.0,0.070179]
[1725957785193,0.001,57149.0,57148.0,0.070179]
[1725957785496,0.001,57149.0,57148.0,0.087887]
[1725957785692,0.001,57152.0,57148.0,0.087887]
[1725957785892,0.08748,57153.0,57151.0,0.0004]
[1725957786096,0.08748,57153.0,57152.0,0.0004]
[1725957786397,0.08748,57153.0,57151.0,0.0004]
[1725957786398,0.11006109,57153.0,57151.0,0.0004]
[1725957786592,0.087473,57158.0,57151.0,0.0004]
[1725957786794,0.087473,57158.0,57157.0,0.0004]
[1725957787096,0.02293553,57159.0,57157.0,0.0004]
[1725957787394,0.087466,57162.0,57158.0,0.07017967]
[1725957787600,0.087466,57162.0,57161.0,0.0004]
[1725957787899,0.087466,57162.0,57159.0,0.06977967]
[1725957788288,0.08746,57166.0,57160.0,0.06977967]
[1725957788495,0.087458,57167.0,57165.0,0.0004]
[1725957788806,0.2206,57172.0,57165.0,0.0004]
[1725957788807,0.02334256,57169.0,57165.0,0.0004]
[1725957788996,0.16,57172.0,57168.0,0.0004]
[1725957789195,0.16,57172.0,57171.0,0.0004]
[1725957789495,0.087448,57174.0,57171.0,0.0004]
[1725957789688,0.16,57176.0,57173.0,0.0004]
[1725957790492,0.27022632,57176.0,57173.0,0.0004]
[1725957791093,0.18278232,57176.0,57173.0,0.0004]
[1725957791301,0.02278232,57176.0,57173.0,0.0004]
[1725957791489,0.16,57182.0,57176.0,0.087444]
[1725957791690,0.247436,57182.0,57181.0,0.0004]
[1725957792590,0.0636,57185.0,57181.0,0.087837]
[1725957792790,0.011,57182.0,57181.0,0.087837]
[1725957792987,0.011,57182.0,57181.0,0.087437]
[1725957793192,0.014,57182.0,57181.0,0.087437]
[1725957793592,0.027,57182.0,57181.0,0.087437]
[1725957793798,0.013,57182.0,57181.0,0.087437]
[1725957795002,0.013,57182.0,57172.0,0.16]
[1725957795003,0.26752213,57182.0,57169.0,0.16]
[1725957795204,0.47986162,57181.0,57169.0,0.16]
[1725957795503,0.25452213,57180.0,57177.0,0.087442]
[1725957795699,0.1844121,57179.0,57178.0,0.087441]
[1725957798294,0.1934121,57179.0,57178.0,0.087441]
[1725957798702,0.18612507,57179.0,57178.0,0.087441]
[1725957798901,0.20012507,57179.0,57178.0,0.087441]
[1725957799405,0.087443,57178.0,57170.0,0.053]
[1725957799598,0.15620144,57171.0,57170.0,0.053]
[1725957799799,0.27685586,57171.0,57170.0,0.140454]
[1725957799999,0.12065442,57171.0,57170.0,1.265214]
[1725957800299,0.12065442,57171.0,57170.0,0.665214]
[1725957800502,0.12065442,57171.0,57170.0,0.087454]
[1725957801103,0.12065442,57171.0,57170.0,1.212214]
[1725957801597,0.12065442,57171.0,57170.0,0.612214]
[1725957802004,0.08745,57173.0,57171.0,0.087451]
[1725957802306,0.08745,57173.0,57172.0,0.15741408]
[1725957802496,0.16,57179.0,57172.0,0.06996308]
[1725957802702,0.087445,57176.0,57174.0,0.087446]
[1725957805092,0.092445,57176.0,57175.0,0.087446]
[1725957805292,0.014,57176.0,57175.0,0.087446]
[1725957806296,0.015,57176.0,57175.0,0.087446]
[1725957806704,0.016,57176.0,57175.0,0.087446]
[1725957806893,0.016,57176.0,57175.0,0.13963357]
[1725957807295,0.016,57176.0,57175.0,0.13963428]
[1725957807493,0.016,57176.0,57175.0,0.087446]
[1725957808511,0.016,57176.0,57175.0,0.13963428]
[1725957808904,0.016,57176.0,57175.0,0.13963085]
[1725957809112,0.016,57176.0,57175.0,0.087446]
[1725957810811,0.016,57176.0,57175.0,0.13963428]
[1725957811702,0.016,57176.0,57175.0,0.087446]
[1725957813607,0.016,57176.0,57175.0,0.887446]
[1725957814405,0.016,57176.0,57175.0,0.95700908]
[1725957815311,0.016,57176.0,57175.0,0.887446]
[1725957815905,0.816,57176.0,57175.0,0.887446]
[1725957816603,0.816,57176.0,57175.0,0.887146]
[1725957817006,1.06117339,57176.0,57175.0,0.55468076]
[1725957817208,1.06117339,57176.0,57175.0,0.64212676]
[1725957820812,1.14861739,57176.0,57175.0,0.64212676]
[1725957821318,1.06117339,57176.0,57175.0,0.64212676]
[1725957822518,1.14861739,57176.0,57175.0,0.55468076]
[1725957823821,1.17109089,57176.0,57175.0,0.55468076]
[1725957824914,0.9259175,57176.0,57175.0,0.67160664]
[1725957825230,0.77225412,57176.0,57175.0,0.89842424]
[1725957825724,0.71101456,57176.0,57175.0,0.89842424]
[1725957829318,0.79845856,57176.0,57175.0,0.81097824]
[1725957829525,0.79845856,57176.0,57175.0,0.67160664]
[1725957829526,0.88590256,57176.0,57175.0,0.67160664]
[1725957831225,0.88590256,57176.0,57175.0,0.7590138]
[1725957831724,0.79845856,57176.0,57175.0,0.67160664]
[1725957832029,1.16015394,57176.0,57175.0,0.55468076]
[1725957833225,0.96815475,57176.0,57175.0,0.55468076]
[1725957833416,0.9275662,57176.0,57175.0,0.55468076]
[1725957833620,0.96811387,57176.0,57175.0,0.55468076]
[1725957835831,1.05555787,57176.0,57175.0,0.55468076]
[1725957838335,0.9681639,57176.0,57175.0,0.55468076]
[1725957838627,0.82711931,57176.0,57175.0,0.64212676]
[1725957839833,0.82711931,57176.0,57175.0,0.66469276]
[1725957840131,0.71101456,57176.0,57175.0,0.91887178]
[1725957841927,0.71101456,57176.0,57175.0,0.91822735]
[1725957844735,0.71101456,57176.0,57175.0,0.89566135]
[1725957844934,0.71101456,57176.0,57175.0,0.75779237]
[1725957845335,0.71101456,57176.0,57175.0,0.86258053]
[1725957845535,0.71101456,57176.0,57175.0,0.86258532]
[1725957845845,0.71101456,57176.0,57175.0,0.75779237]
[1725957846131,0.79845856,57176.0,57175.0,0.67034637]
[1725957847138,0.86793014,57176.0,57175.0,0.55468076]
[1725957848129,0.91567498,57176.0,57175.0,0.55468076]
[1725957848433,0.86793014,57176.0,57175.0,0.55468076]
[1725957848634,0.9899702,57176.0,57175.0,0.55468076]
[1725957848851,0.86793014,57176.0,57175.0,0.55468076]
[1725957849138,0.98997033,57176.0,57175.0,0.55468076]
[1725957849942,0.86793014,57176.0,57175.0,0.55468076]
[1725957850240,0.98996911,57176.0,57175.0,0.55468076]
[1725957850432,0.86793014,57176.0,57175.0,0.55468076]
[1725957850832,0.78048614,57176.0,57175.0,0.64212676]
[1725957851034,0.9025299,57176.0,57175.0,0.64212676]
[1725957852532,0.82847301,57176.0,57175.0,0.64212676]
[1725957854936,0.82847301,57176.0,57175.0,0.75781613]
[1725957854937,0.71101456,57176.0,57175.0,0.75781613]
[1725957856739,0.79845856,57176.0,57175.0,0.67037013]
[1725957858434,0.79845856,57176.0,57175.0,0.77516308]
[1725957859236,0.79845856,57176.0,57175.0,0.67037013]
[1725957860131,0.79845856,57176.0,57175.0,0.77516308]
[1725957860343,0.71101456,57176.0,57175.0,0.86260908]
[1725957860638,0.71101456,57176.0,57175.0,0.75781613]
[1725957860844,0.71101456,57176.0,57175.0,0.86267627]
[1725957861538,0.71101456,57176.0,57175.0,0.75783745]
[1725957861746,0.71101456,57176.0,57175.0,0.75788933]
[1725957862838,0.71101456,57176.0,57175.0,0.89584318]
[1725957865534,0.71101456,57176.0,57175.0,0.75788933]
[1725957866455,0.79845856,57176.0,57175.0,0.67044333]
[1725957866756,0.79845856,57176.0,57175.0,0.67046859]
[1725957867045,0.79845856,57176.0,57175.0,0.67046819]
[1725957870138,0.79845856,57176.0,57175.0,0.55468076]
[1725957872750,0.79845856,57176.0,57175.0,0.64212676]
[1725957872952,0.71101456,57176.0,57175.0,0.64212676]
[1725957873253,0.73936535,57176.0,57175.0,0.64212676]
[1725957874557,0.84397252,57176.0,57175.0,0.64212676]
[1725957875856,0.73936535,57176.0,57175.0,0.64212676]
[1725957876247,0.84397252,57176.0,57175.0,0.64212676]
[1725957876446,0.73936535,57176.0,57175.0,0.64212676]
[1725957876647,0.73936525,57176.0,57175.0,0.64212676]
[1725957877156,0.71101456,57176.0,57175.0,0.89311891]
[1725957879756,0.79845856,57176.0,57175.0,0.80567291]
[1725957879950,0.79845856,57176.0,57175.0,0.66918648]
[1725957880951,1.04590256,57176.0,57175.0,0.66918648]
[1725957881554,1.04590256,57176.0,57175.0,0.75664009]
[1725957881757,1.04590256,57176.0,57175.0,0.64213437]
[1725957881948,1.57062256,57176.0,57175.0,0.55468076]
[1725957882752,0.88590256,57176.0,57175.0,0.55468076]
[1725957882960,1.04590256,57176.0,57175.0,0.55468076]
[1725957885055,1.11556316,57176.0,57175.0,0.55468076]
[1725957886563,1.11554288,57176.0,57175.0,0.55468076]
[1725957887757,1.02809888,57176.0,57175.0,0.55468076]
[1725957887958,0.98681253,57176.0,57175.0,0.55468076]
[1725957892159,0.98681253,57176.0,57175.0,0.6245996]
[1725957892160,1.04590256,57176.0,57175.0,0.6245996]
[1725957892558,0.95845856,57176.0,57175.0,0.6245996]
[1725957893358,1.04590256,57176.0,57175.0,0.6245996]
[1725957897857,1.04590256,57176.0,57175.0,0.60709684]
[1725957898061,0.98590256,57176.0,57175.0,0.60709684]
[1725957898262,0.98590256,57176.0,57175.0,0.55468076]
[1725957898672,1.07334656,57176.0,57175.0,0.55468076]
[1725957898874,2.19806656,57176.0,57175.0,0.55468076]
[1725957902772,2.11062256,57176.0,57175.0,0.55468076]
[1725957902970,0.88590256,57176.0,57175.0,0.55468076]
[1725957903269,2.19806656,57176.0,57175.0,0.04621669]
[1725957903475,0.174908,57170.0,57169.0,0.05240163]
[1725957903664,0.26238,57166.0,57165.0,0.01294363]
[1725957903868,0.087461,57165.0,57164.0,0.00884363]
[1725957904067,0.174932,57162.0,57161.0,1e-08]
[1725957904366,0.174932,57162.0,57155.0,0.0041]
[1725957904367,0.087475,57156.0,57155.0,0.0041]
[1725957904576,0.1952,57165.0,57153.0,0.08745361]
[1725957904577,0.087478,57154.0,57153.0,0.08745361]
[1725957904772,0.08748,57153.0,57151.0,0.17493661]
[1725957905069,0.087481,57152.0,57151.0,0.17493661]
[1725957905368,0.087481,57152.0,57151.0,0.087483]
[1725957905959,0.087483,57151.0,57150.0,0.08745361]
[1725957906171,0.087483,57151.0,57148.0,0.1828]
[1725957906172,0.087483,57151.0,57149.0,0.08745361]
[1725957906370,0.087485,57150.0,57149.0,0.08745361]
[1725957906571,0.001,57152.0,57151.0,0.087483]
[1725957906876,0.001,57152.0,57151.0,0.087883]
[1725957907070,0.10554827,57152.0,57151.0,0.087883]
[1725957907371,0.02936347,57152.0,57151.0,0.087883]
[1725957907767,0.11684447,57152.0,57151.0,0.0004]
[1725957907970,0.11684447,57152.0,57151.0,0.0044]
[1725957908667,0.11784447,57152.0,57151.0,0.0134]
[1725957910673,0.20532547,57152.0,57151.0,0.0134]
[1725957911063,0.11784447,57152.0,57151.0,0.0134]
[1725957911264,0.22239274,57152.0,57151.0,0.0134]
[1725957911463,0.30987374,57152.0,57151.0,0.0134]
[1725957911664,0.22239274,57152.0,57151.0,0.0134]
[1725957912468,0.11784447,57152.0,57151.0,0.0134]
[1725957913067,0.20532547,57152.0,57151.0,0.0134]
[1725957913575,0.11784447,57152.0,57151.0,0.0134]
[1725957913975,0.20532547,57152.0,57151.0,0.0134]
[1725957914167,0.11784447,57152.0,57151.0,0.0134]
[1725957914367,0.11784594,57152.0,57151.0,0.0134]
[1725957914567,0.20532694,57152.0,57151.0,0.0134]
[1725957915269,0.176962,57152.0,57151.0,0.0134]
[1725957916572,0.089481,57152.0,57151.0,0.0134]
[1725957916776,0.176962,57152.0,57151.0,0.0134]
[1725957923072,0.2053304,57152.0,57151.0,0.0134]
[1725957923276,0.176962,57152.0,57151.0,0.0134]
[1725957923489,0.2053304,57152.0,57151.0,0.0134]
[1725957924378,0.2928114,57152.0,57151.0,0.0134]
[1725957924974,0.2053304,57152.0,57151.0,0.0134]
[1725957925575,0.174986,57144.0,57143.0,0.0041]
[1725957925785,0.16,57144.0,57137.0,0.192]
[1725957926773,0.16,57144.0,57137.0,0.279504]
[1725957926774,0.087503,57138.0,57137.0,0.279504]
[1725957927193,0.087503,57138.0,57137.0,0.192]
[1725957927484,0.16,57144.0,57137.0,0.192]
[1725957927485,0.087494,57144.0,57137.0,0.192]
[1725957927684,0.088494,57144.0,57143.0,0.087895]
[1725957927890,0.002,57144.0,57143.0,0.248895]
[1725957928082,0.0041,57152.0,57151.0,0.087483]
[1725957928275,0.0041,57160.0,57151.0,0.0004]
[1725957928482,0.0041,57163.0,57162.0,0.087466]
[1725957928784,0.10864827,57166.0,57162.0,0.087466]
[1725957928785,0.10454827,57170.0,57162.0,0.187466]
[1725957928987,0.0041,57171.0,57163.0,0.1285]
[1725957929283,0.08746,57166.0,57163.0,0.1285]
[1725957929485,0.1,57172.0,57163.0,0.1285]
[1725957929486,0.11024048,57171.0,57164.0,0.0658]
[1725957929682,0.087452,57171.0,57170.0,0.0004]
[1725957931080,0.16,57173.0,57170.0,0.0004]
[1725957931289,0.79845956,57176.0,57170.0,0.087854]
[1725957931481,0.79845956,57176.0,57175.0,0.0004]
[1725957931683,0.087448,57174.0,57168.0,0.0041]
[1725957931978,0.087448,57174.0,57166.0,0.087459]
[1725957932187,0.005,57171.0,57166.0,0.087459]
[1725957932487,0.006,57171.0,57166.0,0.087459]
[1725957933780,0.001,57171.0,57166.0,0.087459]
[1725957934485,0.002,57171.0,57166.0,0.087459]
[1725957934791,0.001,57171.0,57167.0,0.087457]
[1725957935987,0.001,57171.0,57167.0,0.088457]
[1725957936194,0.088453,57171.0,57167.0,0.088457]
[1725957936784,0.247457,57168.0,57167.0,0.001]
[1725957937291,0.34596951,57168.0,57155.0,0.01266452]
[1725957937488,0.16,57160.0,57154.0,0.152777]
[1725957937687,0.16,57160.0,57155.0,0.087476]
[1725957937688,0.087473,57158.0,57155.0,0.087476]
[1725957937891,0.16108261,57157.0,57153.0,0.0613]
[1725957938192,0.087477,57155.0,57152.0,0.087481]
[1725957938393,0.087477,57155.0,57151.0,0.0004]
[1725957938394,0.07360761,57154.0,57151.0,0.0004]
[1725957938690,0.07360761,57153.0,57151.0,0.0004]
[1725957938989,0.18596951,57152.0,57151.0,0.0004]
[1725957939490,0.53015523,57152.0,57151.0,0.0004]
[1725957939796,0.43345051,57152.0,57151.0,0.0004]
[1725957940479,0.27345051,57152.0,57151.0,0.0004]
[1725957941393,0.27345051,57152.0,57151.0,0.0024]
[1725957941695,0.27445051,57152.0,57151.0,0.0024]
[1725957941889,0.27445051,57152.0,57151.0,0.0004]
[1725957942086,0.27545051,57152.0,57151.0,0.0024]
[1725957944399,0.089481,57152.0,57151.0,0.0024]
[1725957944896,0.176962,57152.0,57151.0,0.0024]
[1725957945100,0.089481,57152.0,57151.0,0.0024]
[1725957949102,0.089481,57152.0,57141.0,0.16]
[1725957949103,1.12692,57152.0,57135.0,0.08745361]
[1725957949291,0.087507,57136.0,57133.0,0.087509]
[1725957949603,0.16,57136.0,57133.0,0.087509]
[1725957950698,0.087507,57135.0,57133.0,0.087509]
[1725957950903,0.087507,57135.0,57133.0,0.089509]
[1725957952195,0.087507,57135.0,57133.0,0.087509]
[1725957953403,0.001,57135.0,57130.0,0.087515]
[1725957953698,0.087509,57134.0,57131.0,0.087513]
[1725957954901,0.088509,57134.0,57131.0,0.087513]
[1725957955293,0.089509,57134.0,57131.0,0.087513]
[1725957956395,0.089509,57134.0,57125.0,0.21748472]
[1725957956396,0.089509,57134.0,57132.0,0.087512]
[1725957956595,0.002,57134.0,57133.0,0.08751]
[1725957957605,0.001,57134.0,57133.0,0.08751]
[1725957957806,0.002,57134.0,57133.0,0.08751]
[1725957958509,0.001,57134.0,57133.0,0.08751]
[1725957958705,0.002,57134.0,57133.0,0.08751]
[1725957960809,0.089509,57134.0,57133.0,0.08751]
[1725957963108,0.087496,57142.0,57138.0,0.087501]
[1725957963310,0.087496,57142.0,57133.0,1.28508]
[1725957963311,0.11586876,57141.0,57133.0,0.1622]
[1725957963607,0.087498,57141.0,57138.0,0.087502]
[1725957963916,0.087498,57141.0,57139.0,0.0875]
[1725957965117,0.088498,57141.0,57139.0,0.0875]
[1725957965412,0.02836934,57140.0,57139.0,0.0875]
[1725957967214,0.087499,57140.0,57139.0,0.0895]
[1725957967609,0.087499,57140.0,57139.0,0.0875]
[1725957967806,0.088499,57140.0,57139.0,0.0895]
[1725957968113,0.089499,57140.0,57139.0,0.0915]
[1725957968907,0.002,57140.0,57139.0,0.0915]
[1725957970017,0.249499,57140.0,57139.0,0.004]
[1725957971610,0.336998,57140.0,57139.0,0.004]
[1725957972630,0.249499,57140.0,57139.0,0.004]
[1725957974314,0.249499,57140.0,57129.0,0.02263472]
[1725957974315,0.40010385,57140.0,57129.0,0.02263472]
[1725957974622,0.29929189,57131.0,57125.0,0.00232]
[1725957974818,0.087521,57126.0,57124.0,0.02297421]
[1725957975016,0.15849639,57125.0,57124.0,0.087524]
[1725957976214,0.2270623,57125.0,57124.0,0.087524]
[1725957976432,0.15715198,57125.0,57124.0,0.087524]
[1725957976616,0.09756151,57125.0,57124.0,0.087524]
[1725957976926,0.08796465,57125.0,57124.0,0.087524]
[1725957977427,0.22725479,57125.0,57124.0,0.087524]
[1725957977619,0.29844212,57125.0,57124.0,0.087524]
[1725957978628,0.39453822,57125.0,57124.0,0.087524]
[1725957978815,0.39453822,57125.0,57115.0,0.1306]
[1725957978816,0.47585609,57125.0,57115.0,0.1306]
[1725957979016,0.13940423,57121.0,57115.0,0.1306]
[1725957979216,0.29655621,57120.0,57115.0,0.1306]
[1725957979521,0.29655621,57119.0,57115.0,0.1533272]
[1725957979714,0.38680411,57125.0,57118.0,0.087533]
[1725957979715,0.40423311,57121.0,57118.0,0.087533]
[1725957979916,0.23499908,57120.0,57118.0,0.087533]
[1725957980127,0.15657176,57119.0,57118.0,0.087533]
[1725957980621,0.23498843,57119.0,57118.0,0.087533]
[1725957981227,0.15657176,57119.0,57118.0,0.087533]
[1725957981532,0.15757176,57119.0,57118.0,0.087533]
[1725957981919,0.15857176,57119.0,57118.0,0.087533]
[1725957982323,0.002,57119.0,57118.0,0.087533]
[1725957984716,0.02280038,57128.0,57126.0,0.087521]
[1725957984921,0.087509,57134.0,57127.0,0.0004]
[1725957985122,0.087509,57134.0,57133.0,0.0004]
[1725957985326,0.087509,57134.0,57127.0,0.0004]
[1725957985327,0.02236096,57135.0,57127.0,0.15777457]
[1725957985518,0.087509,57134.0,57132.0,0.087512]
[1725957985723,0.087509,57134.0,57129.0,0.06985557]
[1725957985927,0.087509,57134.0,57131.0,0.087512]
[1725957986524,0.134,57136.0,57132.0,0.087511]
[1725957986727,0.0644,57136.0,57135.0,0.0004]
[1725957987626,0.0644,57136.0,57135.0,0.087907]
[1725957987820,0.0676,57142.0,57139.0,0.0875]
[1725957988024,0.087494,57144.0,57141.0,0.0004]
[1725957988727,0.11047947,57144.0,57141.0,0.0004]
[1725957989623,0.087494,57144.0,57141.0,0.0004]
[1725957989825,0.088494,57144.0,57141.0,0.0014]
[1725957991321,0.088494,57144.0,57141.0,0.0004]
[1725957991921,0.089494,57144.0,57141.0,0.0004]
[1725957992228,0.002,57144.0,57141.0,0.11035015]
[1725957992423,0.002,57144.0,57141.0,0.087898]
[1725957993129,0.002,57144.0,57141.0,0.0004]
[1725957994930,0.002,57144.0,57141.0,0.087898]
[1725957995225,0.002,57144.0,57143.0,0.087495]
[1725957996424,0.002,57144.0,57143.0,0.247495]
[1725957997228,0.002,57144.0,57143.0,0.087495]
[1725957997435,0.002,57144.0,57143.0,1.372495]
[1725957997729,0.0688,57155.0,57148.0,0.16]
[1725957998131,0.0688,57155.0,57154.0,0.0004]
[1725957998332,0.0688,57155.0,57154.0,0.087878]
[1725957998941,0.0688,57155.0,57154.0,0.0004]
[1725957999134,0.0688,57155.0,57154.0,0.087878]
[1725957999633,0.09320566,57155.0,57154.0,0.087878]
[1725958000131,0.09320566,57155.0,57144.0,0.06821623]
[1725958000132,0.33097549,57155.0,57144.0,0.06821623]
[1725958000427,0.1909081,57145.0,57144.0,0.15570923]
[1725958000633,0.42867793,57145.0,57144.0,0.15570923]
[1725958000830,0.23776983,57145.0,57144.0,1.28070923]
[1725958001627,0.23776983,57145.0,57144.0,0.24320223]
[1725958001927,0.1909081,57149.0,57148.0,0.087487]
[1725958002127,0.22959122,57149.0,57148.0,0.247887]
[1725958002333,0.22959122,57149.0,57148.0,1.460334]
[1725958003235,0.32662064,57149.0,57148.0,1.462334]
[1725958003740,0.22959122,57149.0,57148.0,1.462334]
[1725958003944,0.22959122,57149.0,57148.0,1.549821]
[1725958004127,0.05765874,57152.0,57150.0,0.174968]
[1725958004332,0.17341005,57161.0,57154.0,0.087478]
[1725958004641,0.17341005,57161.0,57151.0,0.087883]
[1725958004642,0.0041,57157.0,57151.0,0.087883]
[1725958004940,0.05346256,57156.0,57155.0,0.174954]
[1725958005341,0.05346256,57156.0,57155.0,1.299834]
[1725958005547,5.6e-07,57156.0,57155.0,1.387311]
[1725958005729,5.6e-07,57156.0,57155.0,1.547311]
[1725958005933,5.6e-07,57156.0,57155.0,1.56993949]
[1725958006133,0.00500056,57156.0,57155.0,1.56993949]
[1725958006441,0.13522785,57156.0,57155.0,1.56993949]
[1725958007345,0.014,57156.0,57155.0,1.56993949]
[1725958007837,0.005,57156.0,57155.0,1.56993949]
[1725958008044,0.12122785,57157.0,57156.0,0.17495]
[1725958008242,0.12122785,57158.0,57157.0,0.174946]
[1725958008447,0.12122785,57158.0,57157.0,0.860186]
[1725958008646,0.0041,57166.0,57165.0,0.087461]
[1725958008841,0.12122785,57167.0,57165.0,0.0004]
[1725958009041,0.12122785,57167.0,57166.0,0.0004]
[1725958009238,0.12122785,57167.0,57165.0,0.0004]
[1725958009640,0.12122785,57167.0,57166.0,0.08746]
[1725958010048,0.12622785,57167.0,57166.0,0.08746]
[1725958010542,0.005,57167.0,57166.0,0.08746]
[1725958011047,0.015,57167.0,57166.0,0.08746]
[1725958012140,0.07635637,57167.0,57166.0,0.08746]
[1725958012448,0.07735637,57167.0,57166.0,0.08746]
[1725958013135,0.07735637,57167.0,57166.0,0.11024309]
[1725958013341,0.016,57167.0,57166.0,0.11024309]
[1725958019256,0.016,57167.0,57166.0,0.02278309]
[1725958019550,0.016,57167.0,57166.0,0.08746]
[1725958023245,0.016,57167.0,57165.0,0.02320594]
[1725958023441,0.016,57167.0,57165.0,0.11066694]
[1725958023953,0.016,57167.0,57165.0,0.06988715]
[1725958024558,0.006,57167.0,57166.0,0.24746]
[1725958024756,0.015,57167.0,57166.0,0.85972]
[1725958024956,0.015,57167.0,57166.0,1.57060701]
[1725958026150,0.014,57167.0,57166.0,1.57060701]
[1725958026751,0.005,57167.0,57166.0,1.48314701]
[1725958026951,0.016,57167.0,57166.0,1.48314701]
[1725958027459,0.016,57167.0,57166.0,1.46542]
[1725958028255,0.11978734,57167.0,57166.0,1.46542]
[1725958028860,0.14813675,57167.0,57166.0,1.46542]
[1725958030256,0.04434941,57167.0,57166.0,1.46542]
[1725958032855,0.04434941,57167.0,57166.0,0.08746]
[1725958033064,0.016,57167.0,57166.0,0.08746]
[1725958033866,0.06949576,57167.0,57166.0,0.08746]
[1725958034061,0.016,57167.0,57166.0,0.08746]
[1725958034365,0.09784517,57167.0,57166.0,0.08746]
[1725958034663,0.16964517,57167.0,57166.0,0.08746]
[1725958035360,0.0878,57167.0,57166.0,0.19166739]
[1725958038560,0.016,57167.0,57166.0,0.19166739]
[1725958038762,0.016,57167.0,57166.0,0.27912739]
[1725958038968,0.016,57167.0,57166.0,0.40323235]
[1725958039563,0.016,57167.0,57166.0,0.40314015]
[1725958039767,0.016,57167.0,57166.0,0.80383685]
[1725958039967,0.016,57167.0,57166.0,0.27903685]
[1725958045082,0.016,57167.0,57166.0,0.40321896]
[1725958048491,0.016,57167.0,57166.0,0.38385434]
[1725958049486,0.016,57167.0,57166.0,0.38390998]
[1725958050275,0.04434951,57167.0,57166.0,0.17492]
[1725958052894,0.04434951,57167.0,57166.0,0.26238]
[1725958053285,0.04434951,57167.0,57166.0,1.38718]
[1725958053493,0.0041,57173.0,57172.0,0.087451]
[1725958053693,0.02834723,57173.0,57172.0,0.247851]
[1725958053898,0.08359926,57173.0,57172.0,0.335302]
[1725958054393,0.02834723,57173.0,57172.0,0.335302]
[1725958054691,0.04134723,57173.0,57172.0,0.335302]
[1725958055197,0.05534723,57173.0,57172.0,0.335302]
[1725958055383,0.04234723,57173.0,57172.0,0.335302]
[1725958055592,0.04634723,57173.0,57172.0,0.36329192]
[1725958056494,0.03934723,57173.0,57172.0,0.36429192]
[1725958057286,0.011,57173.0,57172.0,0.59234454]
[1725958057996,0.011,57173.0,57172.0,0.67979554]
[1725958058183,0.08718327,57196.0,57180.0,0.087438]
[1725958058384,0.03397114,57185.0,57181.0,0.35174553]
[1725958058796,0.03397114,57185.0,57181.0,0.45652783]
[1725958059493,0.03397114,57185.0,57181.0,0.35174553]
[1725958059686,0.0217799,57182.0,57181.0,0.35774553]